Workbook

Sheet Лист1
A1: 1 тип | B1: b | C1: 1 | F1: Q | G1: 75
B2: m | C2: =ROUND(TAN(E2/360*3.14),2) -> 1 | E2: 90
B3: n | C3: 0.02
B4: i | C4: 0.01
C7: 9.000022888 | D7: 2 | E7: 3 | F7: 4 | G7: 5
B8: B | C8: =$C$1+2*$C$2*C7 -> 19.00004578 | D8: =$C$1+2*$C$2*D7 -> 5 | E8: =$C$1+2*$C$2*E7 -> 7 | F8: =$C$1+2*$C$2*F7 -> 9 | G8: =$C$1+2*$C$2*G7 -> 11
B9: w | C9: =C7+($C$1+$C$2*C7) -> 19.00004578 | D9: =D7+($C$1+$C$2*D7) -> 5 | E9: =E7+($C$1+$C$2*E7) -> 7 | F9: =F7+($C$1+$C$2*F7) -> 9 | G9: =G7+($C$1+$C$2*G7) -> 11
B10: x | C10: =$C$1+2*C7*SQRT(1+$C$2^2) -> 26.45590886 | D10: =$C$1+2*D7*SQRT(1+$C$2^2) -> 6.656854249 | E10: =$C$1+2*E7*SQRT(1+$C$2^2) -> 9.485281374 | F10: =$C$1+2*F7*SQRT(1+$C$2^2) -> 12.3137085 | G10: =$C$1+2*G7*SQRT(1+$C$2^2) -> 15.14213562
B11: R | C11: =C9/C10 -> 0.7181777756 | D11: =D9/D10 -> 0.7511055241 | E11: =E9/E10 -> 0.7379854876 | F11: =F9/F10 -> 0.7308927283 | G11: =G9/G10 -> 0.7264497078
B12: C | C12: =IF(C11<1,1/$C$3*C11^(1.5*SQRT($C$3)),1/$C$3*C11^(1.3*SQRT($C$3))) -> 46.60925893 | D12: =IF(D11<1,1/$C$3*D11^(1.5*SQRT($C$3)),1/$C$3*D11^(1.3*SQRT($C$3))) -> 47.05461185 | E12: =IF(E11<1,1/$C$3*E11^(1.5*SQRT($C$3)),1/$C$3*E11^(1.3*SQRT($C$3))) -> 46.87904116 | F12: =IF(F11<1,1/$C$3*F11^(1.5*SQRT($C$3)),1/$C$3*F11^(1.3*SQRT($C$3))) -> 46.78310044 | G12: =IF(G11<1,1/$C$3*G11^(1.5*SQRT($C$3)),1/$C$3*G11^(1.3*SQRT($C$3))) -> 46.72262731
B13: Q | C13: =C9*C12*SQRT(C11*$C$4) -> 75.04863989 | D13: =D9*D12*SQRT(D11*$C$4) -> 20.39025597 | E13: =E9*E12*SQRT(E11*$C$4) -> 28.19036319 | F13: =F9*F12*SQRT(F11*$C$4) -> 35.99633875 | G13: =G9*G12*SQRT(G11*$C$4) -> 43.80490249

Sheet Лист2

Sheet Лист3
